bitfinex/quotes_SOLUSD_20240711
["timestamp","ask_amount","ask_price","bid_price","bid_amount"]
[1720726470657,7.2736,137.49,137.44,52.2755]
[1720726471159,7.2738,137.48,137.44,45.0]
[1720726471365,25.74331037,137.53,137.44,45.0]
[1720726471366,7.2752,137.46,137.44,45.0]
[1720726471534,7.2743,137.47,137.44,45.0]
[1720726471850,7.2742,137.48,137.44,45.0]
[1720726472352,7.2743,137.47,137.44,45.0]
[1720726472555,7.2738,137.48,137.45,16.5275]
[1720726472760,7.2738,137.48,137.46,45.0]
[1720726473156,7.2743,137.47,137.46,45.0]
[1720726473848,7.2738,137.48,137.46,45.0]
[1720726474862,7.2743,137.47,137.46,45.0]
[1720726475067,7.2739,137.48,137.46,45.0]
[1720726476259,7.56461037,137.53,137.46,52.2743]
[1720726476454,7.2724,137.51,137.46,52.2743]
[1720726476842,7.2717,137.52,137.47,7.2741]
[1720726477050,7.2717,137.52,137.48,45.0]
[1720726478056,25.73830753,137.55,137.48,45.0]
[1720726478264,18.1781,137.53,137.47,45.0]
[1720726478449,7.2728,137.5,137.46,52.2747]
[1720726478648,7.2733,137.49,137.46,45.0]
[1720726479467,7.2727,137.5,137.46,45.0]
[1720726479851,7.2736,137.49,137.46,45.0]
[1720726480048,7.2738,137.48,137.45,16.5275]
[1720726480561,7.2734,137.49,137.45,16.5275]
[1720726480772,7.2728,137.5,137.45,23.8026]
[1720726480975,7.2736,137.49,137.45,16.5275]
[1720726481640,7.2736,137.49,137.45,23.8027]
[1720726481840,7.2728,137.5,137.45,16.5275]
[1720726482458,7.2728,137.5,137.45,23.8027]
[1720726482658,18.1781,137.53,137.45,16.5275]
[1720726483369,7.2746,137.47,137.45,16.5275]
[1720726483747,7.2738,137.48,137.45,16.5275]
[1720726484052,7.2728,137.5,137.45,23.8025]
[1720726484456,7.2728,137.5,137.45,16.5275]
[1720726484655,18.1772,137.54,137.46,45.0]
[1720726484969,7.2722,137.51,137.46,45.0]
[1720726485449,7.2728,137.5,137.46,52.2744]
[1720726485647,7.2733,137.49,137.46,45.0]
[1720726486065,36.3585,137.52,137.43,21.7561]
[1720726486272,7.2758,137.45,137.43,21.7561]
[1720726486566,7.2759,137.44,137.39,22.3428]
[1720726486748,7.2766,137.43,137.39,15.0646]
[1720726487657,7.2766,137.43,137.39,22.3431]
[1720726487856,7.276,137.44,137.39,22.3431]
[1720726488052,7.276,137.44,137.4,7.2778]
[1720726488371,7.2755,137.45,137.4,7.2778]
[1720726489556,18.1847,137.48,137.41,45.0]
[1720726489755,20.0,137.47,137.41,45.0]
[1720726490054,7.2749,137.46,137.41,52.2774]
[1720726490663,7.2754,137.45,137.41,45.0]
[1720726491362,7.2748,137.47,137.41,52.2773]
[1720726491555,7.2737,137.48,137.43,7.276]
[1720726491758,7.2737,137.48,137.44,45.0]
[1720726492173,7.2743,137.47,137.44,45.0]
[1720726492374,7.2749,137.46,137.43,45.0]
[1720726493271,7.2743,137.47,137.43,45.0]
[1720726493473,25.74767184,137.51,137.44,7.2754]
[1720726493672,7.2728,137.5,137.45,51.1843]
[1720726493878,7.2728,137.5,137.45,13.4594]
[1720726494079,7.2728,137.5,137.46,61.0655]
[1720726494457,7.56667184,137.51,137.46,61.0655]
[1720726494657,7.2727,137.5,137.46,68.3401]
[1720726494974,7.2727,137.5,137.46,61.0655]
[1720726495160,7.2734,137.49,137.46,61.0655]
[1720726496881,7.2742,137.48,137.46,61.0655]
[1720726497066,7.2733,137.49,137.46,61.0655]
[1720726498382,7.2738,137.48,137.46,61.0655]
[1720726498860,7.2743,137.47,137.46,61.0655]
[1720726499681,7.56667184,137.51,137.46,61.0655]
[1720726499867,7.2734,137.49,137.46,61.0655]
[1720726500572,7.2728,137.5,137.46,61.0655]
[1720726501267,14.83897184,137.51,137.46,68.3401]
[1720726502184,7.56667184,137.51,137.47,0.17]
[1720726503059,7.2712,137.53,137.48,7.2737]
[1720726503259,7.2717,137.52,137.49,45.0]
[1720726503773,7.2712,137.53,137.48,52.2737]
[1720726504489,7.2717,137.52,137.48,45.0]
[1720726504788,7.2712,137.53,137.48,52.2737]
[1720726505283,7.2712,137.53,137.49,7.273]
[1720726505486,7.2712,137.53,137.5,45.0]
[1720726505780,7.56795577,137.55,137.5,52.2723]
[1720726505985,14.83805577,137.55,137.5,52.2723]
[1720726506170,7.2711,137.53,137.5,45.0]
[1720726506577,7.2711,137.53,137.49,45.0]
[1720726506976,7.2706,137.54,137.5,0.17]
[1720726508264,7.2706,137.54,137.5,7.4427]
[1720726508477,7.2706,137.54,137.51,45.0]
[1720726510292,7.2706,137.54,137.5,45.17]
[1720726510480,7.2706,137.54,137.5,52.4424]
[1720726510683,14.83815577,137.55,137.51,7.2721]
[1720726510865,7.56795577,137.55,137.52,45.0]
[1720726511072,7.2696,137.56,137.52,58.3528]
[1720726511481,7.271,137.54,137.52,51.0814]
[1720726511662,18.1716,137.58,137.52,45.0]
[1720726511866,4.33628504,137.57,137.52,45.0]
[1720726512068,7.2711,137.53,137.52,45.0]
[1720726512273,7.2717,137.52,137.48,13.355]
[1720726512689,7.2717,137.52,137.49,45.0]
[1720726513088,7.2727,137.5,137.46,16.0655]
[1720726513768,18.1794,137.52,137.46,16.0655]
[1720726513970,7.2736,137.49,137.46,16.0655]
[1720726514378,7.2733,137.49,137.46,16.0655]
[1720726515169,7.2729,137.5,137.47,45.0]
[1720726515588,7.2733,137.49,137.47,45.0]
[1720726516778,7.2728,137.5,137.47,45.0]
[1720726518194,7.2722,137.51,137.47,45.0]
[1720726518875,7.2716,137.52,137.47,52.2741]
[1720726519305,7.08644099,137.57,137.47,45.0]
[1720726519501,7.2704,137.55,137.5,7.2726]
[1720726519679,7.2704,137.55,137.51,45.0]
[1720726519876,7.2706,137.54,137.51,45.0]
[1720726520271,7.2699,137.56,137.5,45.0]
[1720726520596,7.2691,137.57,137.52,16.5143]
[1720726520791,8.38794919,137.59,137.53,45.17]
[1720726520990,7.2686,137.58,137.53,52.4409]
[1720726522673,8.38794919,137.59,137.53,45.0]
[1720726522878,7.27,137.56,137.53,45.0]
[1720726523087,18.1717,137.58,137.53,45.0]
[1720726523269,7.2709,137.54,137.52,16.5143]
[1720726523669,7.2711,137.53,137.52,16.5143]
[1720726523886,7.2711,137.53,137.51,6.6498]
[1720726524196,7.61504864,137.57,137.51,6.6498]
[1720726524197,7.2707,137.54,137.51,6.6498]
[1720726524576,7.2707,137.54,137.52,45.0]
[1720726525299,7.2701,137.55,137.52,45.0]
[1720726525793,7.2706,137.54,137.52,45.0]
[1720726526182,7.61504864,137.57,137.48,15.8126]
[1720726526183,7.272,137.52,137.48,15.8126]
[1720726526570,7.2713,137.53,137.48,23.0862]
[1720726527369,7.2713,137.53,137.49,0.17]
[1720726527698,7.2706,137.54,137.49,45.17]
[1720726528193,7.2702,137.55,137.49,45.17]
[1720726528378,7.2702,137.55,137.5,0.17]
[1720726528779,7.2702,137.55,137.5,7.4425]
[1720726528982,7.2702,137.55,137.51,45.17]
[1720726530891,7.2706,137.54,137.51,45.17]
[1720726532686,7.2702,137.55,137.51,45.17]
[1720726532996,8.0865315,137.59,137.55,7.27]
[1720726533182,8.43243032,137.59,137.56,45.0]
[1720726533383,0.8185315,137.59,137.56,45.0]
[1720726535918,0.8185315,137.59,137.57,0.17]
[1720726536488,0.8185315,137.59,137.57,0.34]
[1720726536894,0.8185315,137.59,137.56,45.0]
[1720726537811,28.51,137.57,137.47,15.5831]
[1720726538012,44.1313,137.54,137.44,6.396]
[1720726538324,10.14121805,137.53,137.44,6.396]
[1720726538613,0.17,137.52,137.44,6.396]
[1720726539107,20.17,137.52,137.44,6.396]
[1720726539311,20.0,137.52,137.44,6.396]
[1720726539883,20.0,137.53,137.44,6.396]
[1720726541006,20.0,137.53,137.44,13.6718]
[1720726541395,20.0,137.53,137.45,45.34]
[1720726542491,3.74642831,137.59,137.47,21.87]
[1720726542696,0.8185315,137.59,137.51,7.2721]
[1720726542918,0.8185315,137.59,137.52,0.34]
[1720726543127,0.8185315,137.59,137.52,45.34]
[1720726543991,0.8185315,137.59,137.52,52.6115]
[1720726544392,0.8185315,137.59,137.53,29.9467]
[1720726544592,0.8185315,137.59,137.54,45.17]
[1720726545005,0.8185315,137.59,137.54,52.4405]
[1720726545613,0.8185315,137.59,137.54,45.17]
[1720726545826,0.8185315,137.59,137.54,45.0]
[1720726546115,0.8185315,137.59,137.55,0.17]
[1720726547421,0.8185315,137.59,137.54,45.0]
[1720726547916,0.8185315,137.59,137.55,0.17]
[1720726548514,0.8185315,137.59,137.54,52.2704]
[1720726548696,0.8185315,137.59,137.54,45.0]
[1720726549217,0.8185315,137.59,137.54,52.2705]
[1720726549420,0.8185315,137.59,137.55,0.17]
[1720726550610,0.8185315,137.59,137.56,7.2692]
[1720726550818,14.43493753,137.65,137.58,22.4443]
[1720726551020,7.61203962,137.63,137.59,45.0]
[1720726551202,7.08644099,137.65,137.59,45.0]
[1720726551895,7.08644099,137.65,137.6,0.17]
[1720726552509,7.08644099,137.65,137.59,45.0]
[1720726552510,20.0,137.64,137.59,45.0]
[1720726553319,20.0,137.64,137.6,0.17]
[1720726553712,20.0,137.65,137.6,0.17]
[1720726556424,7.61103327,137.66,137.6,7.4374]
[1720726556613,7.61103327,137.66,137.61,45.0]
[1720726557211,7.61103327,137.66,137.62,0.17]
[1720726558830,7.61103327,137.66,137.61,45.0]
[1720726559732,7.61103327,137.66,137.6,45.17]
[1720726560033,7.61103327,137.66,137.61,7.4368]
[1720726560325,7.61103327,137.66,137.62,45.17]
[1720726560830,7.61103327,137.66,137.62,52.4362]
[1720726561328,7.61103327,137.66,137.62,45.17]
[1720726561527,7.61103327,137.66,137.63,45.0]
[1720726561719,7.61103327,137.66,137.61,45.0]
[1720726561720,7.61103327,137.66,137.61,52.2667]
[1720726561923,7.61103327,137.66,137.62,7.4361]
[1720726562122,7.61103327,137.66,137.63,45.0]
[1720726562724,7.61103327,137.66,137.62,45.0]
[1720726562929,20.0,137.65,137.58,29.7127]
[1720726563232,20.0,137.65,137.58,22.4443]
[1720726563412,20.0,137.65,137.58,29.7127]
[1720726563819,20.0,137.65,137.59,7.2678]
[1720726564532,20.0,137.65,137.6,45.17]
[1720726564937,7.61103327,137.66,137.6,45.17]
[1720726565125,7.61103327,137.66,137.61,7.2667]
[1720726565327,7.61103327,137.66,137.62,45.0]
[1720726566437,7.61103327,137.66,137.61,45.0]
[1720726566619,7.61103327,137.66,137.62,0.17]
[1720726567014,7.61103327,137.66,137.63,7.2656]
[1720726567223,7.61103327,137.66,137.64,45.0]
[1720726567621,7.61103327,137.66,137.63,45.0]
[1720726568441,7.61103327,137.66,137.62,45.34]
[1720726569115,7.61103327,137.66,137.62,45.17]
[1720726569521,7.61103327,137.66,137.63,45.0]
[1720726569727,7.61103327,137.66,137.62,0.17]
[1720726570729,7.61103327,137.66,137.62,7.436]
[1720726570936,7.61103327,137.66,137.63,45.0]
[1720726571138,7.61103327,137.66,137.62,0.17]
[1720726571519,20.0,137.65,137.62,0.17]
[1720726571722,7.61103327,137.66,137.62,0.17]
[1720726571934,7.61103327,137.66,137.63,7.2654]
[1720726572132,7.61103327,137.66,137.64,45.17]
[1720726572460,7.61103327,137.66,137.65,7.2648]
[1720726572748,7.61103327,137.66,137.65,45.17]
[1720726573321,7.61103327,137.66,137.65,0.17]
[1720726574423,7.61103327,137.66,137.65,7.4348]
[1720726574636,7.61103327,137.66,137.65,52.4348]
[1720726575639,7.61103327,137.66,137.65,52.6048]
[1720726576544,7.61103327,137.66,137.65,58.6287]
[1720726576722,0.8185315,137.73,137.67,7.2632]
[1720726576924,0.8185315,137.73,137.68,46.61914416]
[1720726577140,0.8185315,137.73,137.68,45.17]
[1720726578656,0.8185315,137.73,137.68,0.17]
[1720726578839,0.8185315,137.73,137.68,0.34]
[1720726579157,0.8185315,137.73,137.67,45.0]
[1720726579352,20.8185315,137.73,137.65,13.2885]
[1720726579855,20.8185315,137.73,137.65,6.0239]
[1720726580041,20.8185315,137.73,137.64,15.6867]
[1720726581163,20.8185315,137.73,137.64,22.9516]
[1720726581344,20.8185315,137.73,137.65,0.34]
[1720726581536,20.8185315,137.73,137.65,45.34]
[1720726581735,20.8185315,137.73,137.65,52.6044]
[1720726582761,20.8185315,137.73,137.66,7.2641]
[1720726583137,20.8185315,137.73,137.67,52.6036]
[1720726583448,20.8185315,137.73,137.68,0.17]
[1720726583646,20.8185315,137.73,137.68,45.17]
[1720726584246,20.8185315,137.73,137.68,45.0]
[1720726585941,20.8185315,137.73,137.67,45.0]
[1720726586157,20.8185315,137.73,137.68,0.17]
[1720726587162,20.8185315,137.73,137.68,7.433]
[1720726587367,20.8185315,137.73,137.69,45.0]
[1720726588767,20.8185315,137.73,137.7,0.17]
[1720726588971,20.8185315,137.73,137.69,0.17]
[1720726589343,20.8185315,137.73,137.68,45.17]
[1720726589544,20.8185315,137.73,137.65,7.2644]
[1720726589756,20.8185315,137.73,137.66,0.17]
[1720726589963,20.8185315,137.73,137.66,7.4342]
[1720726590168,20.8185315,137.73,137.67,7.2635]
[1720726590350,20.8185315,137.73,137.68,7.433]
[1720726590961,20.8185315,137.73,137.69,45.17]
[1720726591163,20.8185315,137.73,137.7,0.17]
[1720726591350,20.8185315,137.73,137.7,7.4319]
[1720726591551,0.8185315,137.73,137.71,45.17]
[1720726591746,0.8185315,137.73,137.72,0.17]
[1720726593463,0.8185315,137.73,137.71,45.0]
[1720726593672,0.8185315,137.73,137.7,45.0]
[1720726595150,0.8185315,137.73,137.66,6.4828]
[1720726595351,0.8185315,137.73,137.67,7.2635]
[1720726595771,0.8185315,137.73,137.67,7.2636]
[1720726596571,0.8185315,137.73,137.68,45.17]
[1720726596750,0.8185315,137.73,137.69,0.17]
[1720726597660,0.8185315,137.73,137.69,7.4326]
[1720726597865,0.8185315,137.73,137.7,0.17]
[1720726598182,0.8185315,137.73,137.7,7.4321]
[1720726598378,0.8185315,137.73,137.71,0.17]
[1720726598564,0.8185315,137.73,137.68,52.263]
[1720726598881,0.8185315,137.73,137.69,0.34]
[1720726599269,0.8185315,137.73,137.69,7.6025]
[1720726600086,0.8185315,137.73,137.7,7.2621]
[1720726600279,0.8185315,137.73,137.71,0.17]
[1720726600453,0.8185315,137.73,137.71,0.34]
[1720726600868,0.8185315,137.73,137.71,7.6014]
[1720726601982,0.8185315,137.73,137.71,0.34]
[1720726602468,0.8185315,137.73,137.71,7.6014]
[1720726602678,0.8185315,137.73,137.72,7.2611]
[1720726602993,0.8185315,137.73,137.72,7.6011]
[1720726604273,0.8185315,137.73,137.72,0.34]
[1720726604685,0.8185315,137.73,137.69,7.2625]
[1720726605190,0.8185315,137.73,137.69,21.87]
[1720726605362,0.8185315,137.73,137.71,7.2611]
[1720726605988,0.8185315,137.73,137.72,0.17]
[1720726607377,0.8185315,137.73,137.72,7.6011]
[1720726609692,0.8185315,137.73,137.72,0.34]
[1720726610400,0.8185315,137.73,137.68,50.3]
[1720726610586,0.8185315,137.73,137.71,7.2613]
[1720726610785,0.8185315,137.73,137.68,50.3]
[1720726610978,0.8185315,137.73,137.72,7.2611]
[1720726611674,0.8185315,137.73,137.71,7.2615]
[1720726611873,0.8185315,137.73,137.72,0.34]
[1720726612289,0.8185315,137.73,137.72,7.6011]
[1720726612477,0.8185315,137.73,137.72,0.34]
[1720726612795,0.8185315,137.73,137.68,50.3]
[1720726612796,0.8185315,137.73,137.69,7.2625]
[1720726614067,0.8185315,137.73,137.7,0.34]
[1720726614690,0.8185315,137.73,137.67,23.6423]
[1720726615976,0.8185315,137.73,137.68,7.6031]
[1720726617780,0.8185315,137.73,137.68,0.34]
[1720726617993,0.8185315,137.73,137.68,7.6031]
[1720726619088,0.8185315,137.73,137.69,50.3]
[1720726619290,0.8185315,137.73,137.72,7.2611]
[1720726619488,0.8185315,137.73,137.72,7.6011]
[1720726621997,0.8185315,137.73,137.72,7.4311]
[1720726622178,0.8185315,137.73,137.67,16.3788]
[1720726622804,0.8185315,137.73,137.71,7.2615]
[1720726623295,0.8185315,137.73,137.72,7.2611]
[1720726623878,0.8185315,137.73,137.72,7.4311]
[1720726624079,0.8185315,137.73,137.72,0.17]
[1720726624278,0.8185315,137.73,137.72,29.3011]
[1720726624497,0.8185315,137.73,137.72,29.4711]
[1720726626481,0.8185315,137.73,137.72,7.2611]
[1720726626682,0.8185315,137.73,137.71,7.2614]
[1720726627096,0.8185315,137.73,137.68,28.43]
[1720726627292,0.8185315,137.73,137.7,7.262]
[1720726628800,0.8185315,137.73,137.69,0.17]
[1720726628801,0.8185315,137.73,137.72,7.2611]
[1720726629002,0.8185315,137.73,137.72,7.4311]
[1720726629786,0.8185315,137.73,137.72,0.17]
[1720726629986,0.8185315,137.73,137.72,7.6011]
[1720726630408,21.7691,137.86,137.72,44.2648]
[1720726630608,8.28961749,137.83,137.78,7.2577]
[1720726630916,8.28961749,137.82,137.79,7.4273]
[1720726631096,21.7691,137.86,137.79,7.4274]
[1720726631418,8.28965699,137.83,137.79,7.2574]
[1720726631708,21.7691,137.86,137.79,7.2574]
[1720726631887,8.29097202,137.83,137.79,7.2574]
[1720726632296,21.7691,137.86,137.79,7.2574]
[1720726632512,8.29106604,137.83,137.8,7.2565]
[1720726632708,21.7691,137.86,137.8,7.2565]
[1720726632910,8.2926033,137.83,137.8,7.2565]
[1720726633213,21.7691,137.86,137.81,7.2561]
[1720726633517,15.7259,137.86,137.81,7.2561]
[1720726633715,15.7259,137.86,137.8,7.2567]
[1720726633913,15.7259,137.86,137.81,7.4261]
[1720726634118,15.7259,137.86,137.8,7.2568]
[1720726634321,15.7259,137.86,137.79,7.2574]
[1720726635994,15.7259,137.86,137.78,7.4279]
[1720726636196,15.7259,137.86,137.79,7.2574]
[1720726637318,15.7259,137.86,137.78,0.17]
[1720726637319,15.7259,137.86,137.81,7.2559]
[1720726637909,15.7259,137.86,137.8,7.2567]
[1720726638604,15.7259,137.86,137.81,7.2563]
[1720726639296,15.7259,137.86,137.82,45.0]
[1720726639497,15.7259,137.86,137.81,45.0]
[1720726640196,0.8185315,137.87,137.83,7.2553]
[1720726640390,0.8185315,137.87,137.83,45.17]
[1720726640595,0.8185315,137.87,137.85,7.254]
[1720726641015,0.8185315,137.87,137.86,45.0]
[1720726642095,0.8185315,137.87,137.86,52.2537]
[1720726642404,0.8185315,137.87,137.86,45.0]
[1720726642993,0.8185315,137.87,137.86,52.2537]
[1720726644909,0.8185315,137.87,137.86,45.0]
[1720726647331,0.8185315,137.87,137.86,52.5937]
[1720726648525,0.8185315,137.87,137.86,52.4237]
[1720726648737,0.8185315,137.87,137.86,52.2537]
[1720726649417,0.8185315,137.87,137.86,52.4237]
[1720726650625,0.8185315,137.87,137.86,45.0]
[1720726651220,0.8185315,137.87,137.86,7.2537]
[1720726651418,0.8185315,137.87,137.82,21.8653]
[1720726651622,0.8185315,137.87,137.85,7.2542]
[1720726651814,0.8185315,137.87,137.82,21.8653]
[1720726652014,0.8185315,137.87,137.85,7.254]
[1720726652233,0.8185315,137.87,137.82,21.8653]
[1720726652544,0.8185315,137.87,137.85,7.2541]
[1720726652924,0.8185315,137.87,137.83,7.2549]
[1720726653440,0.8185315,137.87,137.81,28.43]
[1720726653822,0.8185315,137.87,137.86,7.2537]
[1720726654232,0.8185315,137.87,137.86,45.0]
[1720726655051,0.8185315,137.87,137.86,52.2537]
[1720726656242,0.8185315,137.87,137.86,45.0]
[1720726656847,0.8185315,137.87,137.86,52.2537]
[1720726657835,0.8185315,137.87,137.86,45.0]
[1720726659037,0.8185315,137.87,137.86,52.2537]
[1720726660246,7.59470848,137.93,137.91,7.2509]
[1720726660430,0.04312934,137.94,137.92,45.0]
[1720726660831,0.04312934,137.94,137.93,7.25]
[1720726661039,0.04312934,137.94,137.93,45.0]
[1720726661236,0.04312934,137.94,137.91,7.251]
[1720726661534,0.04312934,137.94,137.87,28.43]
[1720726661535,0.04312934,137.94,137.92,45.0]
[1720726661740,0.04312934,137.94,137.91,45.0]
[1720726661952,0.04312934,137.94,137.82,6.1046]
[1720726661953,6.415,137.93,137.82,6.1046]
[1720726662130,6.415,137.93,137.86,7.2535]
[1720726662453,6.415,137.93,137.87,7.253]
[1720726663248,20.0,137.92,137.87,7.253]
[1720726663549,20.0,137.92,137.82,6.1046]
[1720726663728,20.0,137.92,137.85,7.2542]
[1720726665031,20.0,137.92,137.81,44.6182]
[1720726665032,0.17,137.91,137.84,7.2546]
[1720726665541,20.0,137.92,137.86,7.2536]
[1720726665742,20.0,137.92,137.85,7.2541]
[1720726665956,0.17,137.91,137.83,7.2551]
[1720726666147,0.17,137.91,137.84,7.2547]
[1720726666649,0.17,137.91,137.85,7.2541]
[1720726667043,0.17,137.91,137.86,45.0]
[1720726667244,20.0,137.92,137.86,52.2537]
[1720726667642,20.0,137.92,137.86,45.0]
[1720726668157,20.0,137.92,137.87,7.2531]
[1720726668458,20.0,137.92,137.86,52.2536]
[1720726668851,20.0,137.92,137.87,7.2531]
[1720726669056,20.0,137.92,137.88,45.0]
[1720726669360,20.0,137.92,137.82,6.6608]
[1720726669535,20.0,137.92,137.85,7.254]
[1720726670046,20.0,137.92,137.86,45.0]
[1720726670640,20.0,137.92,137.86,52.2536]
[1720726670954,20.0,137.92,137.87,7.2531]
[1720726671137,20.0,137.92,137.86,52.2535]
[1720726671336,20.0,137.92,137.86,45.0]
[1720726671744,7.59514318,137.93,137.86,45.0]
[1720726672059,0.04312934,137.94,137.91,7.251]
[1720726673039,0.04312934,137.94,137.87,0.34]
[1720726673040,0.04312934,137.94,137.9,7.2514]
[1720726673252,0.04312934,137.94,137.91,45.0]
[1720726673455,0.04312934,137.94,137.91,52.251]
[1720726675336,0.04312934,137.94,137.92,7.2505]
[1720726675537,0.04312934,137.94,137.93,45.0]
[1720726675938,0.04312934,137.94,137.92,45.0]
[1720726676151,0.04312934,137.94,137.93,7.25]
[1720726676454,0.04312934,137.94,137.93,52.25]
[1720726676846,0.04312934,137.94,137.93,52.42]
[1720726678360,0.04312934,137.94,137.93,52.59]
[1720726679362,0.04312934,137.94,137.93,52.42]
[1720726679857,0.04312934,137.94,137.93,52.25]
[1720726680445,0.04312934,137.94,137.93,52.42]
[1720726681362,0.04312934,137.94,137.93,52.59]
[1720726684068,0.04312934,137.94,137.93,52.25]
[1720726684240,0.04312934,137.94,137.93,7.25]
[1720726686545,0.04312934,137.94,137.93,7.42]
[1720726686861,0.04312934,137.94,137.93,52.25]
[1720726687366,0.04312934,137.94,137.93,45.0]
[1720726687761,0.04312934,137.94,137.83,22.4339]
[1720726687967,0.21312934,137.94,137.85,7.2541]
[1720726688171,0.17,137.93,137.84,7.2543]
[1720726688467,0.34,137.93,137.84,7.2543]
[1720726688650,0.34,137.93,137.81,28.43]
[1720726688651,0.17,137.93,137.86,7.2533]
[1720726689054,0.17,137.93,137.85,7.2541]
[1720726689259,0.34,137.93,137.85,7.2541]
[1720726689658,22.7099,137.92,137.83,7.2548]
[1720726689856,0.17,137.91,137.83,7.2548]
[1720726690064,20.17,137.91,137.83,7.2548]
[1720726690269,20.17,137.91,137.8,15.1507]
[1720726690270,20.17,137.91,137.84,7.2547]
[1720726690452,0.17,137.9,137.82,7.2554]
[1720726690651,0.17,137.9,137.81,7.2562]
[1720726690857,0.17,137.9,137.78,28.43]
[1720726691174,0.17,137.9,137.82,7.2558]
[1720726691871,0.17,137.9,137.81,7.2562]
[1720726693274,0.17,137.9,137.82,7.2558]
[1720726693785,0.17,137.9,137.78,28.43]
[1720726693961,20.17,137.91,137.83,7.2547]
[1720726694160,20.17,137.91,137.84,52.2546]
[1720726694488,20.0,137.91,137.84,7.2546]
[1720726694663,20.0,137.91,137.85,45.0]
[1720726695065,20.0,137.91,137.81,7.2561]
[1720726695260,0.17,137.9,137.82,45.0]
[1720726695667,0.17,137.9,137.8,7.2565]
[1720726695874,0.34,137.9,137.78,7.2577]
[1720726696083,28.43,137.89,137.77,15.8655]
[1720726696293,20.17,137.88,137.81,7.2563]
[1720726696576,20.0,137.88,137.82,7.2557]
[1720726697278,0.17,137.9,137.82,7.2556]
[1720726697579,0.34,137.9,137.83,45.0]
[1720726698380,7.93763297,137.9,137.82,45.0]
[1720726698583,20.0,137.89,137.82,45.0]
[1720726700559,20.0,137.89,137.82,52.2556]
[1720726700759,20.0,137.89,137.83,7.2551]
[1720726700996,20.0,137.89,137.84,45.0]
[1720726701871,20.0,137.89,137.84,52.2545]
[1720726702583,7.59763297,137.9,137.85,28.77]
[1720726702879,0.04312934,137.94,137.9,7.2514]
[1720726703287,0.04312934,137.94,137.91,45.0]
[1720726704096,0.04312934,137.94,137.9,52.2516]
[1720726704384,30.17962343,137.98,137.9,45.0]
[1720726704385,28.43,137.97,137.9,45.0]
[1720726704865,0.17,137.96,137.88,7.2525]
[1720726705064,0.17,137.96,137.89,45.0]
[1720726705274,20.17,137.96,137.89,45.0]
[1720726705573,20.0,137.96,137.89,52.252]
[1720726705975,20.0,137.96,137.89,45.0]
[1720726706570,20.0,137.96,137.89,52.252]
[1720726706771,20.0,137.96,137.89,45.0]
[1720726706979,20.0,137.96,137.9,7.2511]
[1720726707172,7.59252343,137.98,137.95,7.2485]
[1720726707373,0.8185315,138.01,137.9,21.4226]
[1720726707578,0.8185315,138.01,137.93,7.2498]
[1720726707774,0.8185315,138.01,137.94,45.0]
[1720726707981,0.8185315,138.01,137.93,7.2496]
[1720726708162,0.8185315,138.01,137.94,45.0]
[1720726708689,0.8185315,138.01,137.94,52.2495]
[1720726708984,20.8185315,138.01,137.94,45.0]
[1720726709393,0.8185315,138.01,137.93,52.25]
[1720726709575,0.17,138.0,137.93,52.25]
[1720726710096,0.17,138.0,137.94,7.2494]